fUST/lending_fUST_20240329
["ID","MTS","AMOUNT","RATE_DAILY","PERIOD"]
[320871071,1711654247732,-602.13,0.00074999,120]
[320871073,1711654247741,-602.16,0.00074999,120]
[320871075,1711654247750,-548.58,0.00074999,90]
[320871077,1711654247759,-548.58,0.00074999,90]
[320871079,1711654247770,-548.58,0.00074999,90]
[320871081,1711654247779,-548.58,0.00074999,90]
[320871083,1711654247788,-548.58,0.00074999,90]
[320871085,1711654247799,-548.58,0.00074999,90]
[320871087,1711654247808,-548.58,0.00074999,90]
[320871089,1711654247819,-548.58,0.00074999,90]
[320871091,1711654247828,-548.58,0.00074999,90]
[320871093,1711654247838,-548.58,0.00074999,90]
[320871095,1711654247847,-548.58,0.00074999,90]
[320871097,1711654247856,-548.58,0.00074999,90]
[320871098,1711654247866,-548.66904881,0.00074999,90]
[320871100,1711654247875,-2440.95,0.00074999,120]
[320871102,1711654247884,-2440.95,0.00074999,120]
[320871104,1711654247894,-2440.95,0.00074999,120]
[320871106,1711654247903,-2440.95,0.00074999,120]
[320871108,1711654247913,-2440.95,0.00074999,120]
[320871110,1711654247922,-2440.95,0.00074999,120]
[320871112,1711654247931,-2440.95,0.00074999,120]
[320871114,1711654247941,-2441.17193232,0.00074999,120]
[320871116,1711654247949,-385.1,0.00074999,120]
[320871118,1711654247959,-385.1,0.00074999,120]
[320871120,1711654247968,-385.1,0.00074999,120]
[320871122,1711654247978,-385.1,0.00074999,120]
[320871124,1711654247987,-385.1,0.00074999,120]
[320871126,1711654247995,-385.1,0.00074999,120]
[320871128,1711654248005,-385.1,0.00074999,120]
[320871130,1711654248014,-385.1,0.00074999,120]
[320871132,1711654248023,-385.1,0.00074999,120]
[320871133,1711654248032,-385.1,0.00074999,120]
[320871135,1711654248041,-385.1,0.00074999,120]
[320871137,1711654248051,-385.1,0.00074999,120]
[320871139,1711654248060,-385.28946255,0.00074999,120]
[320871141,1711654248069,-1133.26,0.00074999,120]
[320871143,1711654248078,-1133.26,0.00074999,120]
[320871145,1711654248087,-1133.26,0.00074999,120]
[320871147,1711654248096,-1133.26,0.00074999,120]
[320871149,1711654248105,-1133.26,0.00074999,120]
[320871151,1711654248114,-1133.26,0.00074999,120]
[320871153,1711654248123,-1133.26,0.00074999,120]
[320871155,1711654248132,-1133.26,0.00074999,120]
[320871156,1711654248141,-1133.26,0.00074999,120]
[320871158,1711654248150,-1133.26,0.00074999,120]
[320871160,1711654248159,-1133.26,0.00074999,120]
[320871162,1711654248168,-1133.45,0.00074999,120]
[320871164,1711654248177,-54008.8766742,0.00075,120]
[320871166,1711654248192,-23219.27513172,0.00075,120]
[320871168,1711654248217,205.25738965,0.00041943,2]
[320871320,1711654253672,155.44196863,0.00041943,2]
[320871321,1711654261478,-4000.0,0.00054792,120]
[320871322,1711654261506,-500.0,0.00054794,120]
[320871323,1711654261535,-500.0,0.00054794,120]
[320871324,1711654261564,-500.0,0.00054794,120]
[320871325,1711654261591,-500.0,0.00054794,120]
[320871326,1711654261618,-500.0,0.00054794,120]
[320871327,1711654261646,-500.0,0.00054794,120]
[320871328,1711654261672,-458.46666244,0.00054794,120]
[320871329,1711654262299,500.0,0.00054794,120]
[320871330,1711654262327,500.0,0.00054794,120]
[320871373,1711655361151,-2630.71991666,0.00034882,4]
[320871374,1711655361171,-5460.63597731,0.00034882,5]
[320871412,1711655432384,-154.9690062,0.0003202,4]
[320871414,1711655432393,-151.73069069,0.00032021,2]
[320871416,1711655432405,-494.33907754,0.00032021,2]
[320871418,1711655432414,-1947.15612427,0.00032782,2]
[320871420,1711655432423,-621.30348841,0.00033622,2]
[320871422,1711655432432,-919.60868688,0.00034877,4]
[320871424,1711655432440,-154.9690062,0.00034877,4]
[320871426,1711655432449,-322.01281307,0.00034877,4]
[320871428,1711655432458,-154.9690062,0.00034877,4]
[320871430,1711655432468,-154.9690062,0.00034877,4]
[320871432,1711655432477,-377.94552551,0.00034878,4]
[320871434,1711655432486,-318.35740362,0.00034878,4]
[320871436,1711655432495,-210.21946068,0.00034878,4]
[320871438,1711655432503,-154.9690062,0.00034879,4]
[320871440,1711655432512,-3502.49400301,0.00034879,4]
[320871442,1711655432521,-252.46676483,0.0003488,2]
[320871444,1711655432530,-2115.72508144,0.0003488,4]
[320871446,1711655432539,-830.67030105,0.00034881,4]
[320871448,1711655432548,-4336.45425987,0.00034881,4]
[320871450,1711655432557,-169.511253,0.0003492,2]
[320871452,1711655432566,-200.0,0.00034958,2]
[320871454,1711655432575,-2726.82,0.00035,30]
[320871456,1711655432584,-1687.1730458,0.00035022,2]
[320871458,1711655432594,-832.92689,0.00035115,120]
[320871460,1711655432603,-620.06517442,0.00035303,2]
[320871462,1711655432611,-3000.0,0.00035907,2]
[320871464,1711655432620,-250.0,0.00036318,2]
[320871466,1711655432629,-187.52757789,0.00036684,2]
[320871468,1711655432638,-208.34987011,0.00036785,2]
[320871470,1711655432647,-1756.94133649,0.00036881,4]
[320871472,1711655432656,-328.32,0.00036986,5]
[320871474,1711655432665,-191.666687,0.00036986,2]
[320871476,1711655432674,-620.00325872,0.00037068,2]
[320871478,1711655432683,-1947.15612427,0.00037782,2]
[320871480,1711655432692,-24900.0,0.00039389,2]
[320871482,1711655432701,-173.56587593,0.00040855,2]
[320871484,1711655432710,-12481.2690041,0.00040955,2]
[320871486,1711655432718,-832.92689,0.00040967,120]
[320871488,1711655432727,-504.217175,0.00041563,2]
[320871490,1711655432736,-620.88059428,0.00041943,4]
[320871491,1711655432745,-1947.15612427,0.00042782,2]
[320871493,1711655432754,-250.68884351,0.00043833,4]
[320871495,1711655432763,-832.92689,0.0004682,120]
[320871496,1711655432772,-8537.17433867,0.00047269,2]
[320871510,1711655438304,-5849.39837843,0.00034826,2]
[320871518,1711655438370,-7935.44303447,0.00034826,2]
[320871520,1711655438379,-15898.76089946,0.00034882,60]
[320871522,1711655438388,-154.9690062,0.00034882,4]
[320871524,1711655438397,-180.0,0.00048965,120]
[320871526,1711655438406,-153.0,0.00048966,2]
[320871528,1711655438414,-153.0,0.00048966,2]
[320871530,1711655438423,-153.0,0.00048966,2]
[320871533,1711655438433,-153.0,0.00048966,2]
[320871536,1711655438442,-153.0,0.00048966,2]
[320871538,1711655438451,-153.0,0.00048966,2]
[320871541,1711655438460,-153.0,0.00048966,2]
[320871544,1711655438469,-153.0,0.00048966,2]
[320871547,1711655438479,-153.0,0.00048966,2]
[320871550,1711655438487,-202.0622477,0.00048966,2]
[320871553,1711655438496,-153.0,0.00048966,2]
[320871556,1711655438505,-153.0,0.00048966,2]
[320871558,1711655438514,-153.0,0.00048966,2]
[320871560,1711655438522,-153.0,0.00048966,2]
[320871562,1711655438531,-153.0,0.00048966,2]
[320871564,1711655438540,-153.0,0.00048966,2]
[320871566,1711655438549,-153.0,0.00048966,2]
[320871568,1711655438558,-202.0622477,0.00048966,2]
[320871570,1711655438567,-153.0,0.00048966,2]
[320871572,1711655438575,-153.0,0.00048966,2]
[320871573,1711655438585,-153.0,0.00048966,2]
[320871575,1711655438594,-153.0,0.00048966,2]
[320871578,1711655438613,-202.0622477,0.00048966,2]
[320871581,1711655438623,-153.0,0.00048966,2]
[320871583,1711655438632,-153.0,0.00048966,2]
[320871585,1711655438641,-153.0,0.00048966,2]
[320871587,1711655438651,-202.0622477,0.00048966,2]
[320871589,1711655438660,-153.0,0.00048966,2]
[320871591,1711655438669,-153.0,0.00048966,2]
[320871593,1711655438678,-306.0,0.00048966,2]
[320871595,1711655438687,-202.0622477,0.00048966,2]
[320871597,1711655438696,-202.0622477,0.00048966,2]
[320871599,1711655438705,-202.0622477,0.00048966,2]
[320871601,1711655438714,-202.0622477,0.00048966,2]
[320871602,1711655438724,-202.0622477,0.00048966,2]
[320871604,1711655438733,-153.0,0.00048966,2]
[320871606,1711655438742,-153.0,0.00048966,2]
[320871608,1711655438752,-202.0622477,0.00048966,2]
[320871610,1711655438762,-202.0622477,0.00048966,2]
[320871612,1711655438771,-153.0,0.00048966,2]
[320871614,1711655438781,-153.0,0.00048966,2]
[320871616,1711655438790,-153.0,0.00048966,2]
[320871618,1711655438799,-202.0622477,0.00048966,2]
[320871620,1711655438809,-202.0622477,0.00048966,2]
[320871622,1711655438818,-202.0622477,0.00048966,2]
[320871624,1711655438828,-153.0,0.00048966,2]
[320871626,1711655438837,-202.0622477,0.00048966,2]
[320871628,1711655438847,-153.0,0.00048966,2]
[320871630,1711655438858,-202.0622477,0.00048966,2]
[320871632,1711655438868,-202.0622477,0.00048966,2]
[320871634,1711655438877,-153.0,0.00048966,2]
[320871636,1711655438888,-153.0,0.00048966,2]
[320871639,1711655438898,-202.0622477,0.00048966,2]
[320871641,1711655438907,-202.0622477,0.00048966,2]
[320871642,1711655438917,-153.0,0.00048966,2]
[320871645,1711655438926,-202.0622477,0.00048966,2]
[320871647,1711655438936,-153.0,0.00048966,2]
[320871649,1711655438946,-202.0622477,0.00048966,2]
[320871651,1711655438956,-153.0,0.00048966,2]
[320871652,1711655438965,-153.0,0.00048966,2]
[320871654,1711655438974,-202.0622477,0.00048966,2]
[320871657,1711655438984,-153.0,0.00048966,2]
[320871658,1711655438993,-153.0,0.00048966,2]
[320871660,1711655439002,-202.0622477,0.00048966,2]
[320871663,1711655439011,-153.0,0.00048966,2]
[320871664,1711655439021,-153.0,0.00048966,2]
[320871667,1711655439030,-202.0622477,0.00048966,2]
[320871669,1711655439040,-153.0,0.00048966,2]
[320871671,1711655439054,-153.0,0.00048966,2]
[320871673,1711655439063,-202.0622477,0.00048966,2]
[320871675,1711655439072,-153.0,0.00048966,2]
[320871676,1711655439082,-202.0622477,0.00048966,2]
[320871679,1711655439093,-153.0,0.00048966,2]
[320871680,1711655439102,-153.0,0.00048966,2]
[320871682,1711655439111,-153.0,0.00048966,2]
[320871685,1711655439121,-202.0622477,0.00048966,2]
[320871686,1711655439132,-153.0,0.00048966,2]
[320871688,1711655439142,-153.0,0.00048966,2]
[320871701,1711655439151,-202.0622477,0.00048966,2]
[320871703,1711655439261,-153.0,0.00048966,2]
[320871705,1711655439270,-153.0,0.00048966,2]
[320871707,1711655439279,-202.0622477,0.00048966,2]
[320871709,1711655439288,-153.0,0.00048966,2]
[320871711,1711655439297,-153.0,0.00048966,2]
[320871713,1711655439306,-153.0,0.00048966,2]
[320871715,1711655439315,-202.0622477,0.00048966,2]
[320871717,1711655439324,-355.1014025,0.00048966,2]
[320871718,1711655439333,-202.0622477,0.00048966,2]
[320871720,1711655439344,-10060.84147139,0.00049947,15]
[320871721,1711655439353,-406.860959,0.00049998,4]
[320871722,1711655439362,-154.9690062,0.00049998,4]
[320871723,1711655439372,-216.30701118,0.00049998,4]
[320871724,1711655439381,-752.98993587,0.00049999,4]
[320871725,1711655439390,-275.34537905,0.00049999,4]
[320871726,1711655439399,-8000.0,0.0005,120]
[320871727,1711655439408,-832.92689,0.00052672,120]
[320871728,1711655439419,-166.55546454,0.0005315,2]
[320871729,1711655439428,-154.9690062,0.00054244,4]
[320871730,1711655439437,-282.85116552,0.00054244,4]
[320871731,1711655439446,-258.30573929,0.00054244,4]
[320871732,1711655439455,-1252.60026268,0.00054244,4]
[320871733,1711655439464,-154.9690062,0.00054244,4]
[320871734,1711655439473,-288.89880329,0.00054245,4]
[320871735,1711655439482,-5172.41504345,0.00054246,2]
[320871736,1711655439491,-158.93402427,0.0005479,4]
[320871737,1711655439500,-1417.46301615,0.0005479,4]
[320871738,1711655439510,-429.3790958,0.0005479,4]
[320871739,1711655439519,-1352.99786362,0.0005479,4]
[320871740,1711655439529,-205.41840338,0.0005479,4]
[320871741,1711655439538,-400.0,0.0005479,2]
[320871742,1711655439547,-300.01153387,0.0005479,2]
[320871743,1711655439556,-155.01550155,0.0005479,2]
[320871744,1711655439565,-155.01550155,0.0005479,4]
[320871745,1711655439575,-161.04068202,0.00054791,4]
[320871746,1711655439584,-186.77073307,0.00054791,4]
[320871747,1711655439594,-490.0,0.00054792,4]
[320871748,1711655439603,-270.55201027,0.00054792,4]
[320871750,1711655439612,-201.68893567,0.00054792,4]
[320871752,1711655439621,-472.40292663,0.00054792,4]
[320871754,1711655439630,-388.98607683,0.00054792,4]
[320871756,1711655439639,-309.79863167,0.00054792,4]
[320871758,1711655439648,-300.73214387,0.00054792,4]
[320871760,1711655439657,-1565.85093443,0.00054792,4]
[320871762,1711655439667,-220.86854897,0.00054792,4]
[320871764,1711655439676,-215.94348858,0.00054792,4]
[320871766,1711655439685,-243.04518092,0.00054792,4]
[320871768,1711655439694,-369.72313453,0.00054792,4]
[320871770,1711655439703,-3339.83700905,0.00054792,4]
[320871772,1711655439712,-155.08995217,0.00054792,4]
[320871774,1711655439721,-684.58648199,0.00054792,2]
[320871776,1711655439730,-239.13914389,0.00054792,3]
[320871779,1711655439739,-780.54671569,0.00054792,4]
[320871781,1711655439748,-155.30988607,0.00054792,10]
[320871783,1711655439758,-302.92473787,0.00054792,4]
[320871784,1711655439767,-1951.4363034,0.00054792,4]
[320871786,1711655439776,-166.22828959,0.00054792,4]
[320871788,1711655439785,-155.22586948,0.00054792,4]
[320871790,1711655439794,-155.46842044,0.00054792,4]
[320871792,1711655439803,-155.60461838,0.00054792,4]
[320871794,1711655439812,-155.94683329,0.00054792,4]
[320871796,1711655439822,-203.05006541,0.00054792,4]
[320871799,1711655439832,-2854.07249522,0.00054792,4]
[320871801,1711655439841,-275.8084111,0.00054792,4]
[320871803,1711655439850,-155.59771007,0.00054792,4]
[320871805,1711655439859,-155.6583905,0.00054793,4]
[320871807,1711655439869,-251.92833411,0.00054793,4]
[320871809,1711655439878,-241.41815106,0.00054793,4]
[320871812,1711655439887,-25968.23240051,0.00054793,4]
[320871814,1711655439896,-310.3,0.00054793,2]
[320871815,1711655439905,-308.57037455,0.00054793,120]
[320871817,1711655439915,-176.7,0.00054793,7]
[320871819,1711655439925,-230.23616275,0.00054794,120]
[320871821,1711655439934,-500.0,0.00054794,120]
[320871823,1711655439943,-341.14378185,0.00054794,120]
[320871825,1711655439952,-500.0,0.00054794,120]
[320871827,1711655439963,-389.56707782,0.00054794,120]
[320871829,1711655439972,-155.44196863,0.00054794,2]
[320871831,1711655439981,-205.25738965,0.00054794,2]
[320871834,1711655439991,-500.0,0.00054794,120]
[320871836,1711655440000,-328.05,0.00054794,120]
[320871838,1711655440010,-500.0,0.00054794,120]
[320871840,1711655440019,-500.0,0.00054794,120]
[320871842,1711655440028,-500.0,0.00054794,120]
[320871844,1711655440037,-155.36079134,0.00054794,4]
[320871846,1711655440048,-500.0,0.00054794,120]
[320871848,1711655440061,-500.0,0.00054794,120]
[320871851,1711655440074,-283.251035,0.00054794,120]
[320871853,1711655440087,-500.0,0.00054794,120]
[320871855,1711655440102,-262.55,0.00054794,120]
[320871858,1711655440115,-157.04,0.00054794,120]
[320871860,1711655440126,-500.0,0.00054794,120]
[320871862,1711655440138,-276.9882975,0.00054794,120]
[320871864,1711655440150,-500.0,0.00054794,120]
[320871866,1711655440163,-547.19,0.00054794,120]
[320871869,1711655440175,-500.0,0.00054794,120]
[320871871,1711655440188,-500.0,0.00054794,120]
[320871873,1711655440199,-500.0,0.00054794,120]
[320871876,1711655440212,-500.0,0.00054794,120]
[320871878,1711655440223,-500.0,0.00054794,120]
[320871880,1711655440233,-203.91,0.00054794,120]
[320871882,1711655440245,-500.0,0.00054794,120]
[320871884,1711655440257,-390.01,0.00054794,120]
[320871887,1711655440270,-500.0,0.00054794,120]
[320871889,1711655440282,-235.56,0.00054794,120]
[320871891,1711655440293,-219.07,0.00054794,120]
[320871893,1711655440305,-500.0,0.00054794,120]
[320871896,1711655440318,-500.0,0.00054794,120]
[320871898,1711655440330,-500.0,0.00054794,120]
[320871900,1711655440339,-500.0,0.00054794,120]
[320871902,1711655440350,-155.30193959,0.00054794,2]
[320871905,1711655440364,-496.08196816,0.00054794,7]
[320871907,1711655440376,-500.0,0.00054794,120]
[320871909,1711655440388,-155.35814826,0.00054794,4]
[320871912,1711655440400,-217.55431238,0.00054794,4]
[320871914,1711655440412,-500.0,0.00054794,120]
[320871916,1711655440422,-500.0,0.00054794,120]
[320871918,1711655440433,-500.0,0.00054794,120]
[320871920,1711655440445,-402.56,0.00054794,120]
[320871923,1711655440457,-500.0,0.00054794,120]
[320871925,1711655440469,-500.0,0.00054794,120]
[320871927,1711655440482,-500.0,0.00054794,120]
[320871930,1711655440494,-500.0,0.00054794,120]
[320871932,1711655440506,-500.0,0.00054794,120]
[320871934,1711655440518,-410.95,0.00054794,120]
[320871937,1711655440529,-500.0,0.00054794,120]
[320871939,1711655440539,-500.0,0.00054794,120]
[320871941,1711655440548,-500.0,0.00054794,120]
[320871943,1711655440558,-500.0,0.00054794,120]
[320871945,1711655440569,-500.0,0.00054794,120]
[320871947,1711655440581,-500.0,0.00054794,120]
[320871949,1711655440593,-500.0,0.00054794,120]
[320871951,1711655440604,-500.0,0.00054794,120]
[320871953,1711655440617,-500.0,0.00054794,120]
[320871956,1711655440629,-500.0,0.00054794,120]
[320871958,1711655440640,-500.0,0.00054794,120]
[320871960,1711655440650,-500.0,0.00054794,120]
[320871962,1711655440661,-500.0,0.00054794,120]
[320871964,1711655440671,-276.38473345,0.00054794,120]
[320871966,1711655440682,-323.76995018,0.00054794,120]
[320871968,1711655440693,-500.62140895,0.00054794,120]
[320871970,1711655440703,-500.0,0.00054794,120]
[320871973,1711655440714,-500.0,0.00054794,120]
[320871975,1711655440724,-500.0,0.00054794,120]
[320871977,1711655440736,-500.0,0.00054794,120]
[320871979,1711655440747,-500.0,0.00054794,120]
[320871981,1711655440757,-500.0,0.00054794,120]
[320871983,1711655440768,-500.0,0.00054794,120]
[320871985,1711655440779,-500.0,0.00054794,120]
[320871988,1711655440790,-500.0,0.00054794,120]
[320871990,1711655440800,-500.0,0.00054794,120]
[320871992,1711655440810,-500.0,0.00054794,120]
[320871994,1711655440821,-500.0,0.00054794,120]
[320871996,1711655440831,-500.0,0.00054794,120]
[320871998,1711655440843,-500.0,0.00054794,120]
[320872000,1711655440854,-500.0,0.00054794,120]
[320872002,1711655440865,-490.88470483,0.00054794,120]
[320872005,1711655440875,-500.0,0.00054794,120]
[320872007,1711655440886,-500.0,0.00054794,120]
[320872009,1711655440897,-500.0,0.00054794,120]
[320872011,1711655440907,-500.0,0.00054794,120]
[320872013,1711655440918,-500.0,0.00054794,120]
[320872015,1711655440928,-500.0,0.00054794,120]
[320872017,1711655440939,-500.0,0.00054794,120]
[320872019,1711655440950,-500.0,0.00054794,120]
[320872022,1711655440961,-500.0,0.00054794,120]
[320872024,1711655440972,-500.0,0.00054794,120]
[320872026,1711655440982,-500.0,0.00054794,120]
[320872028,1711655440993,-500.0,0.00054794,120]
[320872030,1711655441003,-500.0,0.00054794,120]
[320872032,1711655441014,-500.0,0.00054794,120]
[320872034,1711655441024,-370.34537895,0.00054794,120]
[320872046,1711655441034,-500.0,0.00054794,120]
[320872048,1711655441141,-500.0,0.00054794,120]
[320872050,1711655441151,-500.0,0.00054794,120]
[320872052,1711655441160,-500.0,0.00054794,120]
[320872054,1711655441169,-500.0,0.00054794,120]
[320872056,1711655441181,-500.0,0.00054794,120]
[320872058,1711655441190,-500.0,0.00054794,120]
[320872060,1711655441199,-500.0,0.00054794,120]
[320872062,1711655441207,-500.0,0.00054794,120]
[320872064,1711655441216,-373.81243871,0.00054794,120]
[320872066,1711655441225,-373.00766729,0.00054794,120]
[320872068,1711655441234,-500.0,0.00054794,120]
[320872070,1711655441243,-500.0,0.00054794,120]
[320872072,1711655441252,-500.0,0.00054794,120]
[320872074,1711655441261,-500.0,0.00054794,120]
[320872076,1711655441270,-500.0,0.00054794,120]
[320872078,1711655441279,-500.0,0.00054794,120]
[320872080,1711655441288,-500.0,0.00054794,120]
[320872082,1711655441297,-500.0,0.00054794,120]
[320872084,1711655441306,-500.0,0.00054794,120]
[320872086,1711655441315,-438.04942652,0.00054794,120]
[320872088,1711655441324,-500.0,0.00054794,120]
[320872090,1711655441333,-500.0,0.00054794,120]
[320872092,1711655441342,-500.0,0.00054794,120]
[320872094,1711655441352,-500.0,0.00054794,120]
[320872096,1711655441361,-500.0,0.00054794,120]
[320872098,1711655441370,-500.0,0.00054794,120]
[320872100,1711655441379,-500.0,0.00054794,120]
[320872102,1711655441388,-500.0,0.00054794,120]
[320872104,1711655441397,-500.0,0.00054794,120]
[320872106,1711655441406,-500.0,0.00054794,120]
[320872108,1711655441414,-500.0,0.00054794,120]
[320872110,1711655441423,-380.84771638,0.00054794,120]
[320872112,1711655441432,-500.0,0.00054794,120]
[320872113,1711655441441,-152.57246151,0.00054794,120]
[320872115,1711655441450,-500.0,0.00054794,120]
[320872117,1711655441459,-500.0,0.00054794,120]
[320872119,1711655441468,-500.0,0.00054794,120]
[320872121,1711655441477,-500.0,0.00054794,120]
[320872123,1711655441485,-500.0,0.00054794,120]
[320872125,1711655441494,-500.0,0.00054794,120]
[320872127,1711655441504,-500.0,0.00054794,120]
[320872129,1711655441513,-500.0,0.00054794,120]
[320872131,1711655441521,-500.0,0.00054794,120]
[320872133,1711655441531,-500.0,0.00054794,120]
[320872135,1711655441540,-500.0,0.00054794,120]
[320872137,1711655441549,-500.0,0.00054794,120]
[320872139,1711655441558,-500.0,0.00054794,120]
[320872141,1711655441568,-500.0,0.00054794,120]
[320872143,1711655441577,-500.0,0.00054794,120]
[320872145,1711655441587,-500.0,0.00054794,120]
[320872147,1711655441595,-500.0,0.00054794,120]
[320872149,1711655441604,-500.0,0.00054794,120]
[320872151,1711655441613,-500.0,0.00054794,120]
[320872153,1711655441622,-500.0,0.00054794,120]
[320872155,1711655441631,-500.0,0.00054794,120]
[320872157,1711655441640,-500.0,0.00054794,120]
[320872159,1711655441649,-500.0,0.00054794,120]
[320872161,1711655441658,-500.0,0.00054794,120]
[320872162,1711655441667,-500.0,0.00054794,120]
[320872164,1711655441676,-500.0,0.00054794,120]
[320872166,1711655441685,-180.66,0.00054794,120]
[320872168,1711655441694,-500.91283844,0.00054794,120]
[320872170,1711655441703,-500.0,0.00054794,120]
[320872172,1711655441712,-500.0,0.00054794,120]
[320872174,1711655441721,-500.0,0.00054794,120]
[320872176,1711655441730,-616.75021206,0.00054794,120]
[320872178,1711655441739,-500.0,0.00054794,120]
[320872180,1711655441748,-574.8437048,0.00054794,120]
[320872182,1711655441757,-500.0,0.00054794,120]
[320872184,1711655441766,-500.0,0.00054794,120]
[320872186,1711655441775,-500.0,0.00054794,120]
[320872188,1711655441784,-344.24,0.00054794,120]
[320872190,1711655441794,-500.0,0.00054794,120]
[320872192,1711655441803,-500.0,0.00054794,120]
[320872194,1711655441812,-500.0,0.00054794,120]
[320872196,1711655441821,-500.0,0.00054794,120]
[320872198,1711655441830,-500.0,0.00054794,120]
[320872200,1711655441839,-500.0,0.00054794,120]
[320872202,1711655441849,-500.0,0.00054794,120]
[320872204,1711655441858,-500.0,0.00054794,120]
[320872206,1711655441867,-500.0,0.00054794,120]
[320872208,1711655441875,-500.0,0.00054794,120]
[320872210,1711655441884,-500.0,0.00054794,120]
[320872212,1711655441893,-500.0,0.00054794,120]
[320872214,1711655441902,-500.0,0.00054794,120]
[320872216,1711655441911,-500.0,0.00054794,120]
[320872218,1711655441919,-500.0,0.00054794,120]
[320872220,1711655441928,-500.0,0.00054794,120]
[320872222,1711655441937,-416.84459065,0.00054794,120]
[320872224,1711655441947,-500.0,0.00054794,120]
[320872226,1711655441956,-500.0,0.00054794,120]
[320872228,1711655441965,-509.31078726,0.00054794,120]
[320872231,1711655441981,-612.75358802,0.00054794,120]
[320872233,1711655441995,-500.0,0.00054794,120]
[320872235,1711655442004,-500.0,0.00054794,120]
[320872237,1711655442013,-500.0,0.00054794,120]
[320872239,1711655442022,-500.0,0.00054794,120]
[320872241,1711655442032,-500.0,0.00054794,120]
[320872243,1711655442041,-500.0,0.00054794,120]
[320872246,1711655442055,-500.0,0.00054794,120]
[320872248,1711655442064,-500.0,0.00054794,120]
[320872250,1711655442074,-500.0,0.00054794,120]
[320872252,1711655442083,-500.0,0.00054794,120]
[320872254,1711655442095,-500.0,0.00054794,120]
[320872256,1711655442104,-500.0,0.00054794,120]
[320872258,1711655442113,-500.0,0.00054794,120]
[320872260,1711655442122,-500.0,0.00054794,120]
[320872262,1711655442132,-598.36819225,0.00054794,120]
[320872264,1711655442142,-500.0,0.00054794,120]
[320872266,1711655442151,-500.0,0.00054794,120]
[320872268,1711655442161,-500.0,0.00054794,120]
[320872270,1711655442172,-500.0,0.00054794,120]
[320872272,1711655442182,-500.0,0.00054794,120]
[320872274,1711655442191,-500.0,0.00054794,120]
[320872276,1711655442200,-500.0,0.00054794,120]
[320872278,1711655442210,-500.0,0.00054794,120]
[320872280,1711655442220,-500.0,0.00054794,120]
[320872282,1711655442230,-500.0,0.00054794,120]
[320872284,1711655442239,-466.51962101,0.00054794,120]
[320872286,1711655442248,-584.53253149,0.00054794,120]
[320872288,1711655442257,-1000.0,0.00054794,7]
[320872290,1711655442266,-500.0,0.00054794,120]
[320872292,1711655442276,-500.0,0.00054794,120]
[320872294,1711655442285,-500.0,0.00054794,120]
[320872296,1711655442295,-500.0,0.00054794,120]
[320872298,1711655442305,-500.0,0.00054794,120]
[320872300,1711655442314,-500.0,0.00054794,120]
[320872302,1711655442323,-500.0,0.00054794,120]
[320872304,1711655442332,-500.0,0.00054794,120]
[320872306,1711655442342,-493.32600004,0.00054794,120]
[320872308,1711655442352,-229.65115844,0.00054794,120]
[320872310,1711655442361,-500.0,0.00054794,120]
[320872312,1711655442371,-484.72496775,0.00054794,120]
[320872314,1711655442380,-500.0,0.00054794,120]
[320872316,1711655442389,-500.0,0.00054794,120]